Cogmind - Beta 13 @@@ ROGUE MODE // 2024.03.31 @ 22:43:13 Player: Astrozal Result: Destroyed by Y-45 Defender with Beam Rifle Performance ------------- Evolutions (1) 500 Regions Visited (3) 600 Robots Destroyed (49) 245 Value Destroyed (1202) 1202 Prototype IDs (0) 0 Alien Tech Used (0) 0 Bonus (94) 94 TOTAL SCORE: 2641 Bonus ------- High Alert Combat Kills 94 Cogmind --------- Core Integrity 0/400 Matter 400/400 Energy 100/100 System Corruption 3% Temperature Cool (9) Movement Core (100) Ox1 Location -9/Storage Parts ------- > --- POWER (3) -------- (None) > --- PROPULSION (2) --- (None) > --- UTILITY (2) ------ Medium Matter Pod > --- WEAPON (2) ------- Maul > --- INVENTORY (5) ---- Huge Storage Unit Shield Generator Peak State ------------ > --- POWER ------------ Improved Ion Engine Improved Ion Engine Improved Ion Engine > --- PROPULSION ------- Light Treads Light Treads > --- UTILITY ---------- Medium Matter Pod Light Armor Plating > --- WEAPON ----------- Small Laser Heavy Assault Rifle > --- INVENTORY -------- Huge Storage Unit Shield Generator [Rating: 13] Favorites ----------- Power Light Ion Engine Engine Light Ion Engine Propulsion Aluminum Leg Treads Light Treads Leg Aluminum Leg Wheel Wheel Utility Medium Matter Pod Device Heat Sink Storage Medium Matter Pod Protection Light Armor Plating Weapon Grenade Launcher Energy Gun Small Laser Energy Cannon Beam Cannon Ballistic Gun Heavy Assault Rifle Launcher Grenade Launcher Impact Weapon Maul Build | -11 -10 -9 -9 ------- Run | Yrd Mat Mat Sto Slots Evolved 2 | . . 2 . Power 2 | . . 2 . Propulsion . | . . . . Utility . | . . . . Weapon . | . . . . Parts Attached 38 | 5 4 22 7 Power 11 | 1 . 8 2 Engine 11 | 1 . 8 2 Core . | . . . . Reactor . | . . . . Propulsion 7 | 2 . 4 1 Treads 2 | . . 1 1 Leg 4 | 2 . 2 . Wheel 1 | . . 1 . Hover . | . . . . Flight . | . . . . Utility 8 | . 2 5 1 Device 2 | . . 2 . Storage 4 | . 2 2 . Processor . | . . . . Hackware . | . . . . Protection 2 | . . 1 1 Artifact . | . . . . Weapon 12 | 2 2 5 3 Energy Gun 5 | 1 . 2 2 Energy Cannon 2 | . 1 1 . Ballistic Gun 3 | 1 . 2 . Ballistic Cannon . | . . . . Launcher 1 | . 1 . . Special Weapon . | . . . . Impact Weapon 1 | . . . 1 Slashing Weapon . | . . . . Piercing Weapon . | . . . . Special Melee Weapon . | . . . . Unidentified Prototypes . | . . . . Parts Lost 28 | . 1 15 12 Power 9 | . . 5 4 Propulsion 7 | . . 5 2 Utility 4 | . . 2 2 Weapon 8 | . 1 3 4 Highest Loss Streak 9 | . 1 9 6 To Critical Strikes . | . . . . Average Slot Usage (%) 76 | . 78 75 77 Engine 23 | . 14 23 28 Treads 6 | . . 3 17 Leg 11 | . 28 12 . Device 3 | . . 4 1 Storage 9 | . 7 9 11 Protection 2 | . . 2 2 Energy Gun 7 | . 7 7 9 Energy Cannon 1 | . 7 1 . Ballistic Gun 4 | . 5 3 6 Launcher 5 | . 8 7 . Naked Turns . | . . . . Heaviest Build 30 | 6 26 28 30 Greatest Support 40 | 20 20 20 40 Greatest Overweight (x) 7 | . 1 6 7 Average Overweight (x) . | . . . . Largest Inventory Capacity 25 | 5 15 25 5 Average Capacity 5 | 5 5 5 5 Most Carried 5 | 5 5 5 4 Average Carried 3 | 2 3 3 2 Final Capacity 5 | 5 5 5 5 Final Carried 5 | 5 4 3 2 Class Distribution -------------------- 51% | Mutant 48% | Scavenger-Mutant Dominant Class ---------------- Mutant | -10/Materials Mutant | -9/Materials Scavenger-Mutant | -9/Storage Resources | -11 -10 -9 -9 ----------- Run | Yrd Mat Mat Sto Matter Collected 925 | 203 151 444 127 Remotely . | . . . . Salvage Created 1286 | 57 308 640 281 Parts 101 | 5 22 52 22 Haulers Intercepted . | . . . . Recyclers Shooed 1 | . . . 1 Parts Field Recycled . | . . . . Retrieved Matter . | . . . . Parts Self-Destructed . | . . . . Prevented . | . . . . Kills | -11 -10 -9 -9 ------- Run | Yrd Mat Mat Sto Combat Hostiles Destroyed 34 | 1 11 14 8 Melee 3 | . . 2 1 Guns 11 | 1 1 3 6 Cannons 3 | . 3 . . AOE 16 | . 7 9 . Classes Destroyed 7 | 2 2 3 . Worker 8 | 1 2 4 1 Recycler 1 | . . 1 . Watcher 6 | . 1 4 1 Swarmer 9 | . 3 3 3 Grunt 17 | 1 8 7 1 Brawler 1 | . . 1 . Sentry 7 | . . 3 4 Best Kill Streak 8 | 1 8 6 4 Combat Bots Only 5 | 1 5 4 3 Max Kills in Single Turn 3 | 1 2 3 1 Gunslinging . | . . . . Exploded 2 | . 1 2 . Melee 1 | . . 1 1 Uniques/NPCs Destroyed . | . . . . Combat | -11 -10 -9 -9 -------- Run | Yrd Mat Mat Sto Hostile Shots Fired 175 | 4 23 63 85 Missed 38 | 1 10 12 15 Damage Taken 2162 | 34 209 981 938 Core 447 | . 37 281 129 Absorbed by Shields . | . . . . Core Remaining (%) 92 | 100 85 . . Volleys Fired 83 | 4 15 32 32 Largest 2 | 2 2 2 2 Hottest 130 | 60 90 90 130 Shots Fired 124 | 8 29 44 43 Gun 79 | 8 7 21 43 Cannon 17 | . 8 9 . Launcher 28 | . 14 14 . Special . | . . . . Kinetic 24 | 4 . 2 18 Thermal 44 | . 8 11 25 Explosive 28 | . 14 14 . Electromagnetic 28 | 4 7 17 . Robot Hit Streak 8 | 3 5 4 8 Robot Miss Streak 8 | 1 5 5 8 Penetration Max . | . . . . Secondary Targets . | . . . . Shots Hit Robots 72 | 5 12 16 39 Core Hits 83 | 3 16 38 26 Critical Kills . | . . . . Critical Parts Destroyed 1 | . . . 1 Critical Strikes 1 | . . . 1 Destroy 1 | . . . 1 Melee Attacks 3 | . . . 3 Impact 3 | . . . 3 Slashing . | . . . . Piercing . | . . . . Sneak Attacks . | . . . . Combat Hostiles . | . . . . Follow-up Attacks . | . . . . Damage Inflicted 2498 | 50 669 1214 565 Guns 705 | 50 21 172 462 Cannons 137 | . 86 51 . Explosions 1507 | . 562 945 . Melee 86 | . . . 86 Ramming 63 | . . 46 17 Kinetic 285 | 22 . 16 247 Thermal 797 | . 195 387 215 Explosive 1074 | . 453 621 . Electromagnetic 193 | 28 21 144 . Impact 86 | . . . 86 Slashing . | . . . . Piercing . | . . . . Highest Corruption 3 | . . 3 3 Average Corruption 2 | . . 2 3 Corruption Purged . | . . . . Corruption Blocked . | . . . . Effects 11 | . . 5 6 Message Errors 1 | . . 1 . Matter Fused 4 | . . 1 3 Heat Flow Errors 1 | . . 1 . Energy Discharges 3 | . . 2 1 Data Loss (major) 1 | . . . 1 Weapon Failures 1 | . . . 1 Overload Shots . | . . . . Overflow Damage 160 | . 43 115 2 Projectiles . | . . . . Explosions 158 | . 43 115 . Melee 2 | . . . 2 Knockbacks . | . . . . Impact . | . . . . Kinetic . | . . . . Secondary . | . . . . Self-Inflicted Damage 344 | . 85 259 . Shots 8 | . 2 6 . Rammed 23 | . . 13 10 Targets Rammed 23 | . . 13 10 Kicked . | . . . . Crushed . | . . . . Highest Temperature 454 | 38 108 454 328 Average Temperature 92 | 20 34 110 106 Received Heat Transfer 705 | 18 42 249 396 Effects 7 | . . 7 . Shutdowns 2 | . . 2 . Energy Bleed 2 | . . 2 . Damage (major) 3 | . . 3 . Siege Activations . | . . . . Robots Corrupted . | . . . . Combat Hostiles . | . . . . Parts Fried . | . . . . Impact Corruptions 1 | . . . 1 Robots Melted . | . . . . Combat Hostiles . | . . . . Parts Melted . | . . . . Heat Transferred 1013 | . 285 336 392 Parts Sabotaged . | . . . . Parts Stolen . | . . . . Parts Stripped . | . . . . Power Chain Reactions 3 | . 1 2 . Alert | -11 -10 -9 -9 ------- Run | Yrd Mat Mat Sto Peak Influence 542 | 25 433 542 369 Initial 182 | . 16 182 172 Average 313 | 3 191 393 256 Maximum Alert Level 2 | . 2 2 1 Low Security (%) 17 | 100 48 2 13 Level 1 53 | . 40 49 86 Level 2 29 | . 10 47 . Level 3 . | . . . . Level 4 . | . . . . Level 5 . | . . . . High Security . | . . . . Max Security . | . . . . Squads Dispatched 11 | . 3 3 5 Investigation 4 | . 2 1 1 Extermination . | . . . . Reinforcement 4 | . 1 2 1 Assault . | . . . . Garrison 3 | . . . 3 Intercept . | . . . . Searches Triggered . | . . . . Construction Impeded . | . . . . Haulers Reinforced . | . . . . Active Scanning Responses . | . . . . Cargo Convoy Interrupts . | . . . . Stealth | -11 -10 -9 -9 --------- Run | Yrd Mat Mat Sto Distress Signals 2 | . 1 1 . Communications Jammed . | . . . . Distress Signals . | . . . . Times Spotted 46 | 1 11 22 12 Peak Tracking Total 4 | 1 4 4 3 Tactical Retreats 1 | . . 1 . Traps | -11 -10 -9 -9 ------- Run | Yrd Mat Mat Sto Traps Triggered . | . . . . Indirectly . | . . . . Trap Hack Attempts . | . . . . Triggered . | . . . . Disarmed . | . . . . Reprogrammed . | . . . . Reused . | . . . . Traps Extracted . | . . . . Installed . | . . . . Triggered . | . . . . Machines | -11 -10 -9 -9 ---------- Run | Yrd Mat Mat Sto Machines Disabled 7 | . 3 4 . Max in Single Turn 2 | . 2 2 . Machines Repaired . | . . . . Machines Dismantled . | . . . . Machines Sabotaged . | . . . . Overloaded Fab Kills . | . . . . Hacking | -11 -10 -9 -9 --------- Run | Yrd Mat Mat Sto Machines Accessed 5 | . 2 2 1 Terminals 3 | . 1 2 . Fabricators . | . . . . Repair Stations . | . . . . Recycling Units 2 | . 1 . 1 Scanalyzers . | . . . . Garrison Access . | . . . . Total Hacks 20 | . 8 6 6 Successful 13 | . 5 5 3 Failed 7 | . 3 1 3 Catastrophic 2 | . 1 1 . Database Lockouts . | . . . . Manual 1 | . . 1 . Terminals 8 | . 2 6 . Fabricators . | . . . . Repair Stations . | . . . . Recycling Units 12 | . 6 . 6 Scanalyzers . | . . . . Garrison Access . | . . . . Terminal Hacks 5 | . . 5 . Record 3 | . . 3 . Alert Level 1 | . . 1 . Zone Layout 1 | . . 1 . Fabricator Hacks . | . . . . Repair Station Hacks . | . . . . Recycling Unit Hacks 8 | . 5 . 3 Recycle Component 1 | . 1 . . Process 4 | . 3 . 1 Report Inventory 2 | . 1 . 1 Retrieve Matter 1 | . . . 1 Scanalyzer . | . . . . Garrison Access Hacks . | . . . . Unauthorized Hacks . | . . . . Terminals . | . . . . Fabricators . | . . . . Repair Stations . | . . . . Recycling Units . | . . . . Scanalyzers . | . . . . Garrison Access . | . . . . Data Cores Recovered . | . . . . Used . | . . . . Hacking Detections 5 | . 2 2 1 Full Trace Events 5 | . 2 2 1 Feedback Events . | . . . . Feedback Blocked . | . . . . Robot Schematics Acquired . | . . . . Robots Built . | . . . . Authchips . | . . . . Time . | . . . . Total Robot Build Rating . | . . . . Part Schematics Acquired . | . . . . Parts Built . | . . . . Authchips . | . . . . Time . | . . . . Total Part Build Rating . | . . . . Parts Repaired . | . . . . Time . | . . . . Parts Recycled 1 | . 1 . . Recycled Matter 396 | . 179 . 217 Retrieved Matter . | . . . . Retrieved Components . | . . . . Parts Scanalyzed . | . . . . Part Schematics Acquired . | . . . . Parts Damaged . | . . . . Bothacking | -11 -10 -9 -9 ------------ Run | Yrd Mat Mat Sto Used RIF Installer . | . . . . Robots Hacked . | . . . . Non-combat . | . . . . Combat . | . . . . Robot Hacks Applied . | . . . . Relay Couplers Released . | . . . . Fabnet Peak Effective % . | . . . . Robots Rewired . | . . . . Allies Hacked . | . . . . Hacks Repelled . | . . . . Allies | -11 -10 -9 -9 -------- Run | Yrd Mat Mat Sto Total Allies . | . . . . Largest Group . | . . . . Highest-Rated Group . | . . . . Highest-Rated Ally . | . . . . Total Orders . | . . . . Ally Attacks . | . . . . Total Damage . | . . . . Kills . | . . . . Allies Corrupted . | . . . . Allies Melted . | . . . . Intel | -11 -10 -9 -9 ------- Run | Yrd Mat Mat Sto Robot Analysis Total . | . . . . Derelict Logs Recovered . | . . . . Drone Launches . | . . . . Drone Recoveries . | . . . . Exploration | -11 -10 -9 -9 ------------- Run | Yrd Mat Mat Sto Turns Passed 1705 | 101 219 1000 385 Spaces Moved 978 | 119 135 580 144 Core 148 | 94 . 50 4 Treads 299 | . . 159 140 Legs 531 | 25 135 371 . Wheels . | . . . . Hover . | . . . . Flight . | . . . . Fastest Speed 50 | 50 120 50 100 Average Speed 140 | 64 120 149 188 Slowest Speed 400 | 120 190 350 400 Overloaded Moves . | . . . . Propulsion Burnouts . | . . . . Robots Hopped . | . . . . Cave-ins Triggered . | . . . . Exploration Rate (%) 23 | 6 23 33 31 Regions Visited 3 Branch Regions 1 Pre-discovered Areas . | . . . . Known Exits Taken . | . . . . Unknown Exits Taken 3 | 1 1 1 . Scrap Searched . | . . . . Spaces Dug 17 | . . 17 . Terrain Destroyed 200 | . 89 111 . Melee . | . . . . Projectile . | . . . . AOE 200 | . 89 111 . Terrain Rammed . | . . . . Walls Destroyed . | . . . . Machines Disabled . | . . . . Actions | -11 -10 -9 -9 --------- Run | Yrd Mat Mat Sto Total 1175 | 135 165 673 202 Wait . | . . . . Move 975 | 118 134 579 144 Hop . | . . . . Pick Up 36 | 8 6 16 6 Fast Attach 9 | 2 . 7 . Attach 29 | 3 4 15 7 Detach 5 | . 2 3 . Swap . | . . . . Drop 12 | . 4 8 . Fire 83 | 4 15 32 32 Melee 3 | . . . 3 Ram 13 | . . 13 . Kick . | . . . . Crush 10 | . . . 10 Escape Stasis . | . . . . Rewire . | . . . . Trap . | . . . . Miscellaneous . | . . . . Route ------- -11/Scrapyard -10/Materials -9/Materials (discovered 4 exits: [*Min x2] / *Sto x2) -9/Storage History --------- Turn | Location | Event 2 | -11/Scrapyard | Met Revision 17 85 | -11/Scrapyard | Discovered new exit (range 8) 102 | -11/Scrapyard | Entered Materials 215 | -10/Materials | Discovered new exit (range 14) 315 | -10/Materials | Build established: Mutant 321 | -10/Materials | Entered another Materials area 321 | -9/Materials | Evolved 2 slots: Power x2 595 | -9/Materials | Discovered new exit (range 14) 817 | -9/Materials | Lost 4 parts (2n2u) 955 | -9/Materials | Discovered new exit (range 11) 1015 | -9/Materials | Core integrity fell below 50% 1036 | -9/Materials | Lost 9 parts (4p3n2w) 1131 | -9/Materials | Discovered new exit (range 17) 1249 | -9/Materials | Discovered new exit (range 12) 1321 | -9/Materials | Entered Storage 1322 | -9/Storage | Build established: Scavenger-Mutant 1370 | -9/Storage | Garrison activated, responded to threat 1590 | -9/Storage | Lost 4 parts (1p1u2w) 1632 | -9/Storage | Core integrity fell below 20% 1706 | -9/Storage | Destroyed by Y-45 Defender with Beam Rifle Last Messages --------------- R-06 Scavenger inserts Flight Unit into recycling unit. Destroyed Heat Sink. Y-45 Defender system corrupted by crushing effect. Y-45 Defender system terminally corrupted. Acquired 5 matter. R-06 Scavenger collects Corrupted Hvy. Assault Rifle. System corrupted: Energy discharge (-95). U-05 Engineer builds a Door. R-06 Scavenger collects Corrupted Lgt. Treads. Lgt. Ion Engine destroyed. Lgt. Treads destroyed. Imp. Ion Engine destroyed. Critical hit (Burn: +37). Imp. Ion Engine destroyed. Spread Laser destroyed. Terminal disabled. [Achievement: First Step to Greatness] Map ----- +----------------------------------------------------+ | # !% # #??????????? | | ?# % + #??????????? | | ?# """ """ # #??????????? | | ?# """ """ # ###+###########+####??????????? | | ?# """ """ # ## #?????????????????????? | | ?# # ## #?????????????????????? | | ??########## ## #?????????????????????? | | ???????????# ## ! #?????????????????????? | | ???????????^ ##! #?????????????????????? | | ???????????#### #?????????????????????? | | ??????????????# #?????????????????????? | | ??????????????# #?????????????????????? | | ??????????????# % #?????????????????????? | | ??????????????# #?????????????????????? | | ??????????????# #?????????????????????? | | ??????????????# #?????????????????????? | | ??????????????# ! #?????????????????????? | | ??????????????#+######?????????????????????? | | ??????????????# #?#####????????????????????? | | ??????????????# #?#"""#????????????????????? | | ???????????#??#%###"Y"#######+#####????????? | | ??????# ! " # % ???????? | | ??????#! + ???????? | | ??????# " # g ???????? | | ???????????#??###+#Y#########+#####????????? | | ??????????????# % @r #???????????????????? | | ??????????????#[] #???????????????????? | | ??????????????#[/ #???????????????????? | | ????????????###]/ #???????????????????? | | ????????????#" #???????????????????? | | ????????????#"T """% "#???????????????????? | | ????????????#"" """ T#???????????????????? | | ????????????### """ "#???????????????????? | | ??????????????# #???????????????????? | | ??????????????#### #####???????????????????? | | ?????????????????##????????????????????????? | | ???????????????????????????????????????????? | | | | | | | | | | | | | | | | | | | | | | | | | | | +----------------------------------------------------+ Best States ------------- Heat Dissipation 38 Energy Generation 26 Energy Capacity 595 Matter Stores 400 Matter Capacity 400 Sight Range 16 Terrain Scan Density 10 Armor Coverage 150 Evasion (%) 55 Recoil Reduction 2 Item Schematics ----------------- None Robot Schematics ------------------ None Fabricated ------------ Nothing Alien Tech Used ----------------- None Achievements -------------- First Step to Greatness Fist Fight Let's See Who's Tougher One Hack Too Far Remodeling Storm Trooper Troublemaker Uninvited Guest Challenges ------------ None Game ------ Seed MobileHeavyNanovents Manual? 0 Play Time 01:02:00 Cumulative 1.0 hours Start 2024.03.31 @ 01:12:38 End 2024.03.31 @ 22:43:13 Sessions 3 Manual Loads 0 Difficulty Rogue Special Mode None Game No. 1 Rogue 1 Adventurer 0 Explorer 0 Win Type - Total 0 Types 0/0/0/0/0/0/0/0/0 Lore% 0 Gallery% 2 Achievement% 3 Wizard Run 0 Options --------- Layout 1 ASCII 1 Keyboard 0 Movement Arrows Keybinds 0 Fullscreen 1 Font 16/SmallcapsGlow Map View 50x40 Zoom Use 0% Tactical HUD 0 Map Filters NONE Filters NONE Steam SD RUN: 0d85adcb-257f-4cf0-a514-52cf0456de34